bitfinex-derivatives/quotes_SOLF0:USTF0_20250321
["timestamp","ask_amount","ask_price","bid_price","bid_amount"]
[1742551164282,7.8338,127.72,127.69,7.8346]
[1742551164679,40.26483198,127.73,127.68,12.12483198]
[1742551164887,0.05831184,127.72,127.7,7.834]
[1742551165586,0.05831184,127.72,127.69,7.88589956]
[1742551166690,12.12483198,127.71,127.69,0.05109956]
[1742551167083,7.8346,127.7,127.69,0.05109956]
[1742551170290,35.9546,127.7,127.69,0.05109956]
[1742551173585,7.837,127.66,127.63,40.24483198]
[1742551174291,7.837,127.66,127.64,7.838]
[1742551174883,7.89698961,127.66,127.64,7.88955346]
[1742551176996,0.05998961,127.66,127.64,7.88955346]
[1742551177192,0.05998961,127.66,127.65,7.8376]
[1742551178903,0.05998961,127.66,127.64,0.05155346]
[1742551179302,0.05998961,127.66,127.65,7.8376]
[1742551179599,7.89708961,127.66,127.64,0.05155346]
[1742551179805,0.05998961,127.66,127.64,0.05155346]
[1742551180304,12.18482159,127.66,127.64,0.05155346]
[1742551180499,7.8376,127.65,127.64,0.05155346]
[1742551184910,12.18482159,127.66,127.6,258.6]
[1742551185110,12.12483198,127.64,127.6,258.6]
[1742551185710,19.96343198,127.64,127.61,7.8398]
[1742551186107,20.01478816,127.64,127.61,7.8398]
[1742551186310,7.8392,127.63,127.61,7.8398]
[1742551186512,7.8392,127.63,127.6,266.4404]
[1742551187013,7.8392,127.63,127.6,258.6]
[1742551187209,12.17618816,127.64,127.61,7.8398]
[1742551187610,7.8389,127.63,127.61,7.8398]
[1742551187810,12.17618816,127.64,127.62,28.12]
[1742551187811,0.05135618,127.64,127.62,28.12]
[1742551188013,8.1584,127.7,127.63,12.12483198]
[1742551188213,32.3526,127.7,127.68,7.8355]
[1742551188411,12.12483198,127.69,127.62,28.12]
[1742551188616,12.12483198,127.67,127.62,40.24483198]
[1742551188822,19.96133198,127.67,127.63,7.8386]
[1742551189116,19.96133198,127.67,127.62,40.24483198]
[1742551189315,0.04965554,127.66,127.64,7.88955618]
[1742551189511,0.04965554,127.66,127.64,0.05135618]
[1742551189715,7.88705554,127.66,127.64,0.05135618]
[1742551190217,0.04965554,127.66,127.64,0.05135618]
[1742551190616,7.8376,127.65,127.64,0.05135618]
[1742551191214,7.88695554,127.66,127.64,0.05135618]
[1742551192019,0.04965554,127.66,127.64,0.05135618]
[1742551192218,28.16965554,127.66,127.64,0.05135618]
[1742551192519,0.04965554,127.66,127.65,7.8376]
[1742551194622,0.04965554,127.66,127.64,0.05135618]
[1742551195620,7.8376,127.65,127.64,0.05135618]
[1742551197023,48.08243198,127.65,127.64,0.05135618]
[1742551206728,0.04965554,127.66,127.64,0.05135618]
[1742551207326,0.04965554,127.66,127.64,12.17618816]
[1742551207527,0.04965554,127.66,127.65,7.8376]
[1742551210229,0.04965554,127.66,127.64,7.88935618]
[1742551210431,0.04965554,127.66,127.64,0.05135618]
[1742551210729,7.8376,127.65,127.64,0.05135618]
[1742551212532,48.13168752,127.66,127.64,7.88955618]
[1742551213427,0.04965554,127.66,127.65,7.8376]
[1742551224840,19.95903198,127.71,127.69,7.835]
[1742551226031,20.01514862,127.71,127.69,7.88976589]
[1742551226239,7.8346,127.7,127.69,0.05476589]
[1742551226532,12.18094862,127.71,127.69,0.05476589]
[1742551226940,12.18094862,127.71,127.7,7.8346]
[1742551227133,0.05611664,127.71,127.7,7.8346]
[1742551230638,19.95673198,127.75,127.7,28.12]
[1742551231038,12.12483198,127.75,127.7,28.12]
[1742551231339,7.8324,127.74,127.71,7.8337]
[1742551231835,7.8329,127.73,127.71,0.05746291]
[1742551232938,7.8333,127.72,127.71,0.05746291]
[1742551237049,35.9533,127.72,127.71,0.05746291]
[1742551237350,7.8357,127.69,127.66,270.68483198]
[1742551237949,7.8357,127.69,127.67,7.8364]
[1742551238551,7.89430362,127.69,127.67,7.89523286]
[1742551238853,0.05860362,127.69,127.68,7.8358]
[1742551239944,0.05860362,127.69,127.68,19.96063198]
[1742551240252,28.1,127.76,127.68,40.22483198]
[1742551240451,40.22483198,127.76,127.7,12.12483198]
[1742551240751,12.12483198,127.74,127.71,7.8336]
[1742551241451,12.17571959,127.74,127.71,7.88589509]
[1742551242254,20.00811959,127.74,127.72,7.8332]
[1742551242953,7.8328,127.73,127.71,0.05229509]
[1742551243154,12.17571959,127.74,127.71,0.05229509]
[1742551243458,12.17571959,127.74,127.71,7.88609509]
[1742551243750,12.17571959,127.74,127.71,0.05229509]
[1742551245658,12.17571959,127.74,127.72,7.833]
[1742551245843,0.05088761,127.74,127.71,28.15229509]
[1742551247248,0.05088761,127.74,127.72,7.833]
[1742551247753,7.88308761,127.74,127.72,7.833]
[1742551250958,12.17571959,127.74,127.71,28.15229509]
[1742551251158,12.17571959,127.74,127.71,0.05229509]
[1742551251856,7.8333,127.72,127.71,0.05229509]
[1742551254351,19.95813198,127.72,127.71,0.05229509]
[1742551256061,7.8333,127.72,127.71,0.05229509]
[1742551258058,48.31513198,127.73,127.71,0.05229509]
[1742551258456,7.8333,127.72,127.71,0.05229509]
[1742551260562,56.14803198,127.73,127.71,7.88619509]
[1742551260759,28.1,127.73,127.71,7.88619509]
[1742551261359,35.933,127.73,127.71,7.88619509]
[1742551262165,7.8333,127.72,127.71,0.05229509]
[1742551262566,28.1,127.72,127.66,258.56]
[1742551262764,12.12483198,127.7,127.66,258.56]
[1742551263764,0.0561991,127.69,127.67,0.05057944]
[1742551264368,7.8916991,127.69,127.67,7.88667944]
[1742551265173,0.0561991,127.69,127.67,7.88667944]
[1742551265763,0.0561991,127.69,127.68,7.8358]
[1742551267872,0.0561991,127.69,127.68,35.9358]
[1742551268565,40.22483198,127.75,127.71,7.8337]
[1742551268765,40.22483198,127.75,127.7,12.12483198]
[1742551268965,48.05663198,127.75,127.7,12.12483198]
[1742551269173,48.05663198,127.75,127.72,7.833]
[1742551269474,48.05663198,127.75,127.7,12.12483198]
[1742551269675,20.01619205,127.75,127.72,7.89292573]
[1742551269864,20.01619205,127.75,127.72,0.06002573]
[1742551270472,20.01619205,127.75,127.73,7.8326]
[1742551270682,12.18439205,127.75,127.72,0.06002573]
[1742551270884,12.12483198,127.73,127.68,12.12483198]
[1742551271072,12.12483198,127.73,127.68,28.1]
[1742551271477,7.8343,127.71,127.68,28.1]
[1742551271782,7.8343,127.71,127.66,270.68483198]
[1742551271982,7.8343,127.71,127.67,28.1]
[1742551272183,0.05698842,127.7,127.67,28.1535476]
[1742551272984,0.05698842,127.7,127.69,7.8352]
[1742551274187,0.05698842,127.7,127.68,7.8355]
[1742551274485,0.05698842,127.7,127.67,28.1535476]
[1742551274885,0.05698842,127.7,127.68,12.12483198]
[1742551275787,0.05698842,127.7,127.69,7.8352]
[1742551278088,8.842e-05,127.7,127.69,7.8352]
[1742551278988,8.842e-05,127.7,127.67,0.0535476]
[1742551279187,7.8355,127.69,127.67,0.0535476]
[1742551280183,7.8358,127.68,127.67,0.0535476]
[1742551283191,28.10008842,127.7,127.67,0.0535476]
[1742551283692,35.93508842,127.7,127.67,7.8897476]
[1742551283895,28.10008842,127.7,127.67,0.0535476]
[1742551284084,12.12483198,127.69,127.67,0.0535476]
[1742551284286,7.8358,127.68,127.67,0.0535476]
[1742551285189,19.96033198,127.69,127.67,0.0535476]
[1742551285884,7.8358,127.68,127.67,0.0535476]
[1742551289399,19.96023198,127.69,127.67,0.0535476]
[1742551290102,7.8358,127.68,127.67,0.0535476]
[1742551291697,19.96033198,127.69,127.67,0.0535476]
[1742551292500,19.96033198,127.69,127.67,7.8898476]
[1742551295201,7.8358,127.68,127.67,0.0535476]
[1742551306420,12.12483198,127.66,127.61,270.62483198]
[1742551306713,28.1,127.65,127.61,270.62483198]
[1742551307312,0.05805805,127.64,127.62,7.8992241]
[1742551307913,7.89675805,127.64,127.62,0.0600241]
[1742551309215,7.89675805,127.64,127.62,7.8994241]
[1742551310314,7.89675805,127.64,127.62,0.0600241]
[1742551311015,7.89675805,127.64,127.62,7.8990241]
[1742551311411,0.05805805,127.64,127.62,0.0600241]
[1742551312115,0.05805805,127.64,127.63,7.8389]
[1742551314017,7.89645805,127.64,127.62,7.8991241]
[1742551316318,0.05805805,127.64,127.63,7.8389]
[1742551319019,0.05805805,127.64,127.63,19.96373198]
[1742551319214,44.12663198,127.7,127.67,7.8359]
[1742551319814,51.96143198,127.7,127.68,7.8356]
[1742551320225,19.95963198,127.7,127.68,7.8356]
[1742551320416,20.01937968,127.7,127.68,7.89531994]
[1742551324119,20.01937968,127.7,127.68,0.05971994]
[1742551324324,7.8352,127.69,127.68,0.05971994]
[1742551325124,12.18457968,127.7,127.63,40.22483198]
[1742551325317,12.12483198,127.68,127.63,40.22483198]
[1742551325515,40.22483198,127.68,127.63,40.22483198]
[1742551325729,7.8368,127.67,127.65,7.8375]
[1742551326127,7.89200864,127.67,127.65,7.89669215]
[1742551332927,7.89200864,127.67,127.65,0.05919215]
[1742551334333,7.89200864,127.67,127.65,7.89669215]
[1742551335627,7.89200864,127.67,127.65,0.05919215]
[1742551335832,7.837,127.66,127.65,0.05919215]
[1742551340529,19.96183198,127.66,127.65,0.05919215]
[1742551343636,7.8398,127.62,127.6,258.58]
[1742551344139,40.22483198,127.64,127.6,258.58]
[1742551344639,7.8392,127.63,127.61,7.84]
[1742551344839,7.89238075,127.63,127.61,7.88464571]
[1742551345039,7.89238075,127.63,127.61,0.04464571]
[1742551345638,7.8395,127.62,127.61,0.04464571]
[1742551345838,0.05318075,127.63,127.61,0.04464571]
[1742551346242,7.89238075,127.63,127.61,0.04464571]
[1742551346942,0.05318075,127.63,127.61,0.04464571]
[1742551347539,7.89248075,127.63,127.61,0.04464571]
[1742551348642,7.89248075,127.63,127.61,7.88454571]
[1742551349141,0.05318075,127.63,127.62,7.8395]
[1742551355048,0.05318075,127.63,127.61,7.88454571]
[1742551355350,0.05318075,127.63,127.61,0.04464571]
[1742551355544,7.8395,127.62,127.61,0.04464571]
[1742551355738,19.96433198,127.62,127.61,0.04464571]
[1742551362852,7.842,127.58,127.54,28.1]
[1742551363154,7.842,127.58,127.56,7.8429]
[1742551363357,12.12483198,127.59,127.56,7.8429]
[1742551363558,12.12483198,127.59,127.54,28.1]
[1742551363962,0.05181477,127.58,127.55,7.8435]
[1742551365264,0.05181477,127.58,127.54,28.1]
[1742551365563,7.89411477,127.58,127.53,270.78483198]
[1742551365763,7.89411477,127.58,127.53,298.88483198]
[1742551366062,7.89411477,127.58,127.54,7.8441]
[1742551367159,7.89411477,127.58,127.55,7.8438]
[1742551370067,7.89411477,127.58,127.56,7.8431]
[1742551370363,0.05181477,127.58,127.56,28.1]
[1742551370662,0.05181477,127.58,127.57,7.8425]
[1742551370857,0.05181477,127.58,127.57,19.96733198]
[1742551371859,0.05181477,127.58,127.57,7.8425]
[1742551383265,0.05181477,127.58,127.55,40.22483198]
[1742551383468,0.05181477,127.58,127.55,12.12483198]
[1742551383772,7.89381477,127.58,127.56,7.8429]
[1742551384472,0.05181477,127.58,127.56,7.8429]
[1742551384674,0.05181477,127.58,127.57,7.8425]
[1742551392277,7.89371477,127.58,127.56,7.8428]
[1742551392576,7.89371477,127.58,127.55,12.12483198]
[1742551392774,7.89371477,127.58,127.56,7.8429]
[1742551393977,7.89371477,127.58,127.57,7.8425]
[1742551394176,0.05181477,127.58,127.57,7.8425]
[1742551394378,0.05181477,127.58,127.55,12.12483198]
[1742551394680,7.89371477,127.58,127.56,7.8426]
[1742551394879,7.89371477,127.58,127.55,12.12483198]
[1742551395273,7.89371477,127.58,127.56,7.8426]
[1742551395671,7.8425,127.57,127.54,40.22483198]
[1742551395978,0.05181477,127.58,127.54,40.22483198]
[1742551396277,7.89401477,127.58,127.54,40.22483198]
[1742551396675,7.89401477,127.58,127.56,7.8429]
[1742551400275,0.05181477,127.58,127.54,40.22483198]
[1742551400879,7.8434,127.56,127.54,19.96893198]
[1742551401179,0.05181477,127.58,127.54,12.12483198]
[1742551401381,7.8428,127.57,127.54,12.12483198]
[1742551401782,7.8428,127.57,127.55,7.8435]
[1742551403982,7.8432,127.56,127.54,19.96893198]
[1742551404674,0.05181477,127.58,127.54,12.12483198]
[1742551405185,0.05181477,127.58,127.57,7.8425]
[1742551417394,0.05181477,127.58,127.54,12.12483198]
[1742551417593,0.05181477,127.58,127.53,28.1]
[1742551417795,4.43651477,127.58,127.53,28.1]
[1742551418395,7.8429,127.57,127.54,7.8443]
[1742551418588,4.43651477,127.58,127.54,7.8443]
[1742551418788,4.43651477,127.58,127.52,298.96483198]
[1742551419193,4.43651477,127.58,127.54,12.12483198]
[1742551419490,12.27871477,127.58,127.55,7.8433]
[1742551419692,12.27871477,127.58,127.54,12.12483198]
[1742551420193,12.27871477,127.58,127.56,7.8429]
[1742551421999,12.27871477,127.58,127.57,7.8425]
[1742551422000,4.43651477,127.58,127.57,7.8425]
[1742551422296,4.43651477,127.58,127.54,12.12483198]
[1742551422494,12.27861477,127.58,127.56,7.8428]
[1742551433306,7.8425,127.57,127.55,7.8434]
[1742551435906,24.40364675,127.58,127.56,7.8432]
[1742551436709,0.05181477,127.58,127.57,7.8425]
[1742551437408,0.05181477,127.58,127.56,7.8428]
[1742551437903,7.89371477,127.58,127.56,7.8428]
[1742551439710,7.89371477,127.58,127.55,7.8435]
[1742551440212,7.8426,127.57,127.55,7.8435]
[1742551440510,0.05181477,127.58,127.56,7.8432]
[1742551440717,7.89401477,127.58,127.56,7.8432]
[1742551441014,0.05181477,127.58,127.56,7.8432]
[1742551441312,0.05181477,127.58,127.57,7.8425]
[1742551443014,7.89371477,127.58,127.56,7.8429]
[1742551443221,7.89371477,127.58,127.54,12.12483198]
[1742551443413,0.05181477,127.58,127.54,12.12483198]
[1742551444523,0.05181477,127.58,127.57,7.8425]
[1742551445420,7.89371477,127.58,127.56,7.8429]
[1742551446820,0.05181477,127.58,127.56,7.8429]
[1742551447121,0.05181477,127.58,127.57,7.8425]
[1742551447320,0.05181477,127.58,127.54,12.12483198]
[1742551447520,0.05181477,127.58,127.55,7.8434]
[1742551448115,0.05181477,127.58,127.56,7.8431]
[1742551449120,0.05181477,127.58,127.57,7.8425]
[1742551450427,0.05181477,127.58,127.56,19.96773198]
[1742551451215,0.05181477,127.58,127.57,7.8425]
[1742551451417,0.05181477,127.58,127.56,12.12483198]
[1742551451722,7.89371477,127.58,127.56,7.8429]
[1742551452121,0.05181477,127.58,127.56,7.8429]
[1742551452924,7.89381477,127.58,127.56,7.8429]
[1742551453221,0.05181477,127.58,127.56,7.8429]
[1742551454426,0.05181477,127.58,127.57,7.8425]
[1742551454924,7.89381477,127.58,127.56,7.8429]
[1742551455126,7.89381477,127.58,127.55,28.08]
[1742551455925,7.89381477,127.58,127.56,7.8428]
[1742551456328,0.05181477,127.58,127.56,7.8428]
[1742551456626,0.05181477,127.58,127.57,7.8425]
[1742551457026,0.05181477,127.58,127.55,28.08]
[1742551457723,0.05181477,127.58,127.57,7.8425]
[1742551460732,0.05181477,127.58,127.56,7.8428]
[1742551461131,0.05181477,127.58,127.55,28.08]
[1742551461331,0.05181477,127.58,127.57,7.8425]
[1742551462127,0.05181477,127.58,127.56,7.8429]
[1742551462327,0.05181477,127.58,127.55,28.08]
[1742551463531,0.05181477,127.58,127.57,7.8425]
[1742551469239,14.38883198,127.64,127.62,7.8392]
[1742551469436,48.30265532,127.65,127.61,12.12483198]
[1742551469637,48.30265532,127.65,127.61,40.20483198]
[1742551469841,48.30265532,127.65,127.64,7.8382]
[1742551470232,48.30265532,127.65,127.64,35.9182]
[1742551470233,36.17905532,127.65,127.64,35.9182]
[1742551471239,11.38875532,127.65,127.64,35.9182]
[1742551471838,5.07495,127.65,127.64,35.9182]
[1742551472038,0.05102973,127.66,127.65,7.8376]
[1742551472240,0.05102973,127.66,127.65,19.96243198]
[1742551473646,0.05102973,127.66,127.64,28.08]
[1742551474442,0.05102973,127.66,127.64,35.9179]
[1742551476242,0.05102973,127.66,127.65,7.8376]
[1742551476443,0.05102973,127.66,127.65,19.96243198]
[1742551477944,0.05102973,127.66,127.64,28.08]
[1742551478249,12.17586171,127.66,127.63,0.05181477]
[1742551478647,7.838,127.65,127.63,0.05181477]
[1742551478846,12.17586171,127.66,127.63,0.05181477]
[1742551479249,0.05102973,127.66,127.64,7.8382]
[1742551479546,0.05102973,127.66,127.63,12.17664675]
[1742551479843,0.05102973,127.66,127.65,19.96243198]
[1742551480044,0.05102973,127.66,127.65,48.02243198]
[1742551482748,2.143,127.71,127.69,7.8351]
[1742551483339,12.12483198,127.75,127.68,40.18483198]
[1742551483544,40.18483198,127.75,127.7,12.12483198]
[1742551483747,0.05538989,127.73,127.7,12.17824494]
[1742551483941,0.05538989,127.73,127.71,7.8337]
[1742551484354,0.05538989,127.73,127.71,28.06]
[1742551485048,0.05538989,127.73,127.71,35.8936]
[1742551485351,0.05538989,127.73,127.71,28.06]
[1742551485851,7.88818989,127.73,127.71,28.06]
[1742551486650,7.8333,127.72,127.71,28.06]
[1742551486850,7.8333,127.72,127.7,0.05341296]
[1742551487051,12.18022187,127.73,127.7,0.05341296]
[1742551487252,20.01332187,127.73,127.7,0.05341296]
[1742551488052,7.8334,127.72,127.7,0.05341296]
[1742551488655,12.18022187,127.73,127.7,0.05341296]
[1742551489056,7.8335,127.72,127.7,0.05341296]
[1742551491153,12.18022187,127.73,127.7,0.05341296]
[1742551492249,7.8334,127.72,127.7,0.05341296]
[1742551492448,12.18022187,127.73,127.7,0.05341296]
[1742551493458,20.01332187,127.73,127.7,0.05341296]
[1742551494161,20.01332187,127.73,127.7,7.88791296]
[1742551494360,12.18022187,127.73,127.7,7.88791296]
[1742551494858,0.05538989,127.73,127.71,7.8338]
[1742551496451,0.05538989,127.73,127.72,7.8333]
[1742551498263,0.05538989,127.73,127.72,35.8733]
[1742551498662,12.12483198,127.79,127.72,28.04]
[1742551498963,12.12483198,127.79,127.74,12.12483198]
[1742551499259,19.95413198,127.79,127.76,7.8306]
[1742551499652,12.12483198,127.79,127.75,28.04]
[1742551499958,12.18160266,127.79,127.76,0.05966649]
[1742551500561,12.18160266,127.79,127.76,7.89056649]
[1742551500562,20.01090266,127.79,127.76,7.89056649]
[1742551500860,12.18160266,127.79,127.76,0.05966649]
[1742551502059,7.83,127.78,127.76,0.05966649]
[1742551502763,12.18160266,127.79,127.76,0.05966649]
[1742551503565,7.8303,127.77,127.76,0.05966649]
[1742551504665,12.18160266,127.79,127.76,0.05966649]
[1742551505558,7.8297,127.78,127.76,0.05966649]
[1742551505762,12.18160266,127.79,127.76,0.05966649]
[1742551506264,12.18160266,127.79,127.76,7.89026649]
[1742551506869,7.88627068,127.79,127.77,7.8302]
[1742551507258,0.05677068,127.79,127.77,7.8302]
[1742551507459,0.05677068,127.79,127.78,7.8297]
[1742551507861,0.05677068,127.79,127.78,19.95453198]
[1742551512067,10.1217,127.84,127.81,7.8276]
[1742551512266,12.12483198,127.86,127.81,35.8476]
[1742551512567,4.3539,127.87,127.82,19.95173198]
[1742551513067,4.3539,127.87,127.83,0.05027016]
[1742551513268,0.05513468,127.86,127.84,40.14483198]
[1742551513667,0.05513468,127.86,127.84,47.97053198]
[1742551514566,0.05513468,127.86,127.84,28.02]
[1742551515468,0.05513468,127.86,127.85,12.12483198]
[1742551515668,0.05513468,127.86,127.85,19.95023198]
[1742551515868,0.05513468,127.86,127.85,12.12483198]
[1742551516069,0.05513468,127.86,127.84,28.02]
[1742551516372,0.05513468,127.86,127.83,0.05027016]
[1742551516566,2.24213468,127.86,127.83,0.05027016]
[1742551517370,2.24213468,127.86,127.84,7.8256]
[1742551518570,2.24213468,127.86,127.83,0.05027016]
[1742551519171,7.8257,127.85,127.83,0.05027016]
[1742551520073,10.06723468,127.86,127.83,7.87657016]
[1742551520476,2.24213468,127.86,127.83,7.87657016]
[1742551520868,7.8257,127.85,127.83,0.05027016]
[1742551521069,2.24213468,127.86,127.83,0.05027016]
[1742551521476,7.8257,127.85,127.83,0.05027016]
[1742551521776,7.8257,127.85,127.83,7.87687016]
[1742551522476,7.8257,127.85,127.83,0.05027016]
[1742551522675,7.826,127.84,127.83,0.05027016]
[1742551522976,16.35393198,127.85,127.8,28.0]
[1742551523182,7.8267,127.83,127.8,35.828]
[1742551523975,7.88409499,127.83,127.8,35.88006523]
[1742551524876,0.05739499,127.83,127.81,7.8277]
[1742551525772,7.88399499,127.83,127.81,7.8277]
[1742551526072,7.88399499,127.83,127.8,7.88026523]
[1742551526777,7.88399499,127.83,127.81,7.8277]
[1742551528677,0.05739499,127.83,127.81,7.8277]
[1742551529973,0.05739499,127.83,127.82,7.8272]
[1742551530178,0.05739499,127.83,127.82,35.8272]
[1742551535274,0.05739499,127.83,127.82,28.0]
[1742551535677,0.05739499,127.83,127.81,12.12483198]
[1742551535875,0.05739499,127.83,127.8,28.05206523]
[1742551536385,7.88399499,127.83,127.8,35.88006523]
[1742551536587,12.18222697,127.83,127.8,0.05206523]
[1742551537581,12.12483198,127.81,127.77,258.24]
[1742551538282,28.0,127.8,127.75,40.12483198]
[1742551538482,30.123,127.8,127.75,40.12483198]
[1742551538682,7.83,127.78,127.76,0.05389096]
[1742551540586,0.04936396,127.79,127.78,7.8297]
[1742551542289,2.1514,127.82,127.8,7.828]
[1742551542581,30.123,127.84,127.8,12.12483198]
[1742551542784,30.123,127.84,127.81,7.8276]
[1742551542985,2.123,127.84,127.82,12.12483198]
[1742551543187,28.0,127.86,127.8,46.93104101]
[1742551543388,28.0,127.86,127.82,0.05923991]
[1742551543589,0.05420408,127.84,127.82,0.05923991]
[1742551544090,0.05420408,127.84,127.82,7.88613991]
[1742551544691,0.05420408,127.84,127.82,0.05923991]
[1742551545593,7.88030408,127.84,127.82,0.05923991]
[1742551545983,0.05420408,127.84,127.82,0.05923991]
[1742551548394,0.05420408,127.84,127.83,7.8266]
[1742551549994,0.05420408,127.84,127.82,0.05923991]
[1742551551195,7.8266,127.83,127.82,0.05923991]
[1742551552796,7.88050408,127.84,127.82,0.05923991]
[1742551553899,0.05420408,127.84,127.82,0.05923991]
[1742551554502,0.05420408,127.84,127.83,7.8266]
[1742551555202,0.05420408,127.84,127.83,35.8266]
[1742551563107,0.05420408,127.84,127.83,47.93988099]
[1742551566706,0.05420408,127.84,127.82,0.05923991]
[1742551567512,7.8266,127.83,127.82,0.05923991]
[1742551567807,0.05420408,127.84,127.82,0.05923991]
[1742551568214,7.88050408,127.84,127.82,7.88643991]
[1742551569509,0.05420408,127.84,127.82,7.88643991]
[1742551570006,0.05420408,127.84,127.83,7.8266]
[1742551570511,4.4653,127.88,127.85,7.8249]
[1742551570711,12.2892,127.88,127.85,7.8249]
[1742551571709,12.3449272,127.88,127.85,7.87486696]
[1742551573914,7.8243,127.87,127.85,7.87486696]
[1742551576516,12.3450272,127.88,127.85,0.04996696]
[1742551576714,0.0557272,127.88,127.85,0.04996696]
[1742551576920,0.0557272,127.88,127.87,18.93558207]
[1742551577216,34.6327,127.94,127.87,18.93558207]
[1742551577813,34.6327,127.94,127.9,7.822]
[1742551578012,77.9290514,127.94,127.89,28.0]
[1742551578213,43.2963514,127.94,127.91,18.93558207]
[1742551578419,0.05700054,127.93,127.92,28.0]
[1742551579523,0.05700054,127.93,127.92,35.8211]
[1742551580216,0.05700054,127.93,127.92,28.0]
[1742551583022,0.05700054,127.93,127.9,286.23406949]
[1742551583823,0.05700054,127.93,127.9,258.25406949]
[1742551584013,4.38160054,127.93,127.9,258.25406949]
[1742551584218,4.38160054,127.93,127.9,0.05406949]
[1742551584416,12.20250054,127.93,127.9,0.05406949]
[1742551584923,4.38160054,127.93,127.9,0.05406949]
[1742551585616,7.8217,127.91,127.9,0.05406949]
[1742551602329,2.15360054,127.93,127.9,12.16017539]
[1742551602539,0.05700054,127.93,127.9,12.16017539]
[1742551603342,7.87780054,127.93,127.9,19.98227539]
[1742551603844,7.87780054,127.93,127.92,12.1061059]
[1742551604036,0.05700054,127.93,127.92,12.1061059]
[1742551605443,7.87750054,127.93,127.92,12.1061059]
[1742551605646,0.05700054,127.93,127.91,12.1061059]
[1742551606143,7.8212,127.92,127.91,12.1061059]
[1742551606339,0.05700054,127.93,127.91,12.1061059]
[1742551607144,7.87780054,127.93,127.91,19.9274059]
[1742551607738,0.05700054,127.93,127.92,19.9272059]
[1742551607937,0.05700054,127.93,127.92,47.9072059]
[1742551610839,2.2077,127.99,127.93,7.8203]
[1742551611044,2.2077,127.99,127.95,12.1061059]
[1742551611344,7.8186,127.96,127.95,12.1061059]
[1742551611744,7.8178,127.98,127.95,12.1061059]
[1742551612048,0.05396413,127.97,127.95,40.0861059]
[1742551613142,0.05396413,127.97,127.95,12.1061059]
[1742551613746,7.8193,127.95,127.94,0.05842653]
[1742551625659,7.819,127.96,127.94,0.05842653]
[1742551627967,7.8193,127.95,127.94,0.05842653]
[1742551629464,7.8211,127.92,127.91,258.06]
[1742551632664,0.05711121,127.93,127.9,0.05973088]
[1742551633869,7.8217,127.91,127.9,0.05973088]
[1742551635371,0.05711121,127.93,127.9,0.05973088]
[1742551635870,0.05711121,127.93,127.91,12.1061059]
[1742551636071,0.05711121,127.93,127.91,40.0661059]
[1742551636373,0.05711121,127.93,127.91,47.8873059]
[1742551636571,0.05711121,127.93,127.91,40.0661059]
[1742551637373,0.05711121,127.93,127.91,47.8875059]
[1742551637975,0.05711121,127.93,127.92,7.8211]
[1742551641279,0.05711121,127.93,127.91,27.96]
[1742551641574,7.8211,127.92,127.91,27.96]
[1742551641772,7.8211,127.92,127.9,0.05973088]
[1742551642174,0.05711121,127.93,127.9,0.05973088]
[1742551642374,0.05711121,127.93,127.9,7.88183088]
[1742551642573,0.05711121,127.93,127.9,0.05973088]
[1742551643181,7.8216,127.92,127.9,0.05973088]
[1742551643878,12.16321711,127.93,127.9,0.05973088]
[1742551645982,7.8217,127.91,127.9,0.05973088]
[1742551660584,7.8214,127.92,127.9,0.05973088]
[1742551660777,16.41411711,127.93,127.9,0.05973088]
[1742551660978,7.8217,127.91,127.9,0.05973088]
[1742551664188,7.8214,127.92,127.9,7.88203088]
[1742551664488,16.41411711,127.93,127.9,0.05973088]
[1742551664689,7.8217,127.91,127.9,0.05973088]
[1742551681101,4.30801121,127.93,127.9,12.16583678]
[1742551682810,7.8217,127.91,127.9,12.16583678]
[1742551686010,7.8214,127.92,127.9,12.16583678]
[1742551686713,7.8214,127.92,127.9,19.98803678]
[1742551686913,0.05711121,127.93,127.9,12.16583678]
[1742551687604,0.05711121,127.93,127.92,7.8211]
[1742551687813,0.05711121,127.93,127.92,19.9272059]
[1742551689810,7.87761121,127.93,127.92,12.1061059]
[1742551690407,0.05711121,127.93,127.92,12.1061059]
[1742551691312,0.05711121,127.93,127.92,19.9272059]
[1742551692419,0.05711121,127.93,127.92,12.1061059]
[1742551692713,7.87761121,127.93,127.91,19.9274059]
[1742551693012,7.87761121,127.93,127.91,12.1061059]
[1742551694514,7.8211,127.92,127.91,12.1061059]
[1742551695921,0.05711121,127.93,127.91,12.1061059]
[1742551696312,0.05711121,127.93,127.91,40.0661059]
[1742551696620,0.05711121,127.93,127.92,7.8211]